{"text_format":"1","workbook":"xlsx","n_sheets":1,"sheets":["Lönekostnadsunderlag % av tid"],"not_rendered":{"charts":0,"images":1,"macros":0,"external_links":0,"defined_names":0,"comments":0,"pivot_tables":0},"unopened":[],"bounds":{"document_bytes":16777216,"sheet_cells":100000,"rows_first":2000,"rows_last":500,"rows_between":2000,"halvings":0,"cell_chars":16384,"cell_head_chars":4096},"cells_cut":0,"cells_raw":0,"read":"whole","date_system":"1900"}

{"sheet":"Lönekostnadsunderlag % av tid","index":0,"n_rows":34,"n_cols":8,"rows_kept":34,"cut":false,"hidden":false,"merged":[]}
["Stöd vid rekrytering av personer födda utanför Norden"]
["Lönekostnadsunderlag handledare (% av tid - inkludering, integrering, mångfald)"]
[]
["Företagsnamn:"]
["Id nummer (se beslut):"]
["Namn på handledare*: Dennes lönekostnader anges i beräkningen"]
["Namn på nyanställd:"]
["År: "]
[]
[null,"Bruttolön ","Bruttolön + sociala avgifter (31,24%).  Underlag i form av lönespecifikation och verifikat på löneutbetalning bifogas.","Lönekostnad per timme för bruttolön + sociala avgifter (31,24%). Baseras på att heltid är 170 tim/månad.  ","Avdrag per timme om lönekostnad per timme  + sociala avgifter (31,24%) överstiger 250 kr. Inget avdrag ger utfall \"FALSKT\"","Stödgrundande kostnad vid 100% av arbetad tid i i investeringsprojektet. (Max 250 kr/tim kan utgöra godkänt stödunderlag)","Andel (anges i % ) av arbetad tid  - handledning  - inkludering, integrering, mångfald","Stödgrundande kostnad"]
["Januari",null,{"$f":"B11*1.3124","v":0},{"$f":"C11/170","v":0},{"$f":"IF(D11>250,(D11-250))","v":false},{"$f":"(D11-E11)*170","v":0},null,{"$f":"F11*G11","v":0}]
["Februari",null,0,0,false,0,null,{"$f":"F12*G12","v":0}]
["Mars",null,0,0,false,0,null,0]
["April",null,0,0,false,0,null,0]
["Maj",null,0,0,false,0,null,0]
["Juni",null,0,0,false,0,null,0]
["Juli",null,0,0,false,0,null,0]
["Augusti",null,0,0,false,0,null,0]
["September",null,0,0,false,0,null,0]
["Oktober",null,0,0,false,0,null,0]
["November",null,0,0,false,0,null,0]
["December",null,0,0,false,0,null,0]
["Summa (överförs till Sammanställning)",{"$f":"SUM(B11:B22)","v":0},0,0,false,0,null,0]
[]
["Härmed intygas att att ovanstående arbetstid är nedlagd för genomförande av insatser enligt angivet Id-nummer"]
[]
["Ort, datum","________________________________________________________________"]
[]
["Namnunderskrift anställd:","________________________________________________________________"]
[]
["Namnunderskrift arbetsgivare:","________________________________________________________________"]
[]
[]
["Obligatoriska underlag som ska bifogas:","Lönespecifikationer samt verifikat på löneutbetalningar. Om möjligt underlag som visar att lönekostnaderna är redovisade på en separat projektkod. "]